[Event "-chT Youth Countries 2019"]
[Site "Wuerzburg"]
[Date "2019.10.06"]
[Round "7.8"]
[White "Sereda, Yaroslava"]
[Black "Prinzen, Siri Marleen"]
[Result "1-0"]
[ECO "B17"]
[WhiteElo "1687"]
[BlackElo "1520"]
[Annotator "NA"]
[PlyCount "93"]
[EventDate "2019.10.02"]
[EventType "team-tourn"]
[EventRounds "7"]
[EventCountry "GER"]
[SourceTitle "playchess.com"]
[Source "ChessBase"]
[SourceQuality "1"]
[WhiteTeam "Nordrhein-Westfalen"]
[BlackTeam "Bayern 1"]
[TimeControl "40/5400+30:1800+30"]

1. e4 {[%emt 0:00:00]} c6 {[%emt 0:00:00]} 2. d4 {[%emt 0:00:00]} d5 {[%emt 0:00:00]} 3. Nc3 {[%emt 0:00:00]} dxe4 {[%emt 0:00:00]} 4. Nxe4 {[%emt 0:00:00]} Nd7 {[%emt 0:00:00]} 5. Nf3 {[%emt 0:00:05]} Ngf6 {[%emt 0:00:06]} 6. Nxf6+ {[%emt 0:00:20]} Nxf6 {[%emt 0:00:09]} 7. Ne5 {[%emt 0:00:15]} e6 {[%emt 0:01:37]} 8. c3 {[%emt 0:02:40]} Be7 {[%emt 0:02:44]} 9. Bd3 {[%emt 0:18:51]} O-O {[%emt 0:06:40]} 10. O-O {[%emt 0:04:12]} c5 {[%emt 0:04:08]} 11. dxc5 {[%emt 0:06:02]} Bxc5 {[%emt 0:00:12]} 12. Bg5 {[%emt 0:03:21]} Be7 {[%emt 0:03:18]} 13. Qf3 {[%emt 0:14:37]} Qd5 {[%emt 0:04:42]} 14. Qxd5 {[%emt 0:12:20]} Nxd5 {[%emt 0:00:11]} 15. Bxe7 {[%emt 0:00:18]} Nxe7 {[%emt 0:00:11]} 16. Be4 {[%emt 0:02:14]} Rb8 {[%emt 0:04:55]} 17. Rfd1 {[%emt 0:01:04]} Nf5 {[%emt 0:07:23]} 18. Rd2 {[%emt 0:12:49]} f6 {[%emt 0:02:15]} 19. Nd7 {[%emt 0:03:26]} Bxd7 {[%emt 0:01:16]} 20. Rxd7 {[%emt 0:00:08]} Rf7 {[%emt 0:04:21]} 21. Rad1 {[%emt 0:00:59]} Re7 {[%emt 0:09:18]} 22. Bxf5 {[%emt 0:00:29]} Rxd7 {[%emt 0:00:08]} 23. Bxe6+ {[%emt 0:00:24]} Rf7 {[%emt 0:00:07]} 24. Rd7 {[%emt 0:03:48]} Rbf8 {[%emt 0:00:36]} 25. Rxb7 {[%emt 0:00:50]} a5 {[%emt 0:00:35]} 26. Ra7 {[%emt 0:01:06]} g6 {[%emt 0:01:04]} 27. Bxf7+ {[%emt 0:00:14]} Rxf7 {[%emt 0:00:07]} 28. Rxf7 {[%emt 0:00:49]} Kxf7 {[%emt 0:00:05]} 29. Kf1 {[%emt 0:00:10]} Ke6 {[%emt 0:00:05]} 30. Ke2 {[%emt 0:00:08]} Kd5 {[%emt 0:00:20]} 31. Kd3 {[%emt 0:00:04]} Kc5 {[%emt 0:00:09]} 32. Ke4 {[%emt 0:01:09]} Kc4 {[%emt 0:00:13]} 33. g4 {[%emt 0:00:53]} h6 {[%emt 0:01:37]} 34. f4 {[%emt 0:00:41]} a4 {[%emt 0:02:14]} 35. h4 {[%emt 0:01:20]} f5+ {[%emt 0:03:39]} 36. gxf5 {[%emt 0:00:56]} gxf5+ {[%emt 0:00:06]} 37. Kxf5 {[%emt 0:00:23]} Kd3 {[%emt 0:00:05]} 38. Kg6 {[%emt 0:01:14]} Kc2 {[%emt 0:00:07]} 39. f5 {[%emt 0:00:27]} Kxb2 {[%emt 0:00:07]} 40. f6 {[%emt 0:00:40]} Kxa2 {[%emt 0:00:19]} 41. f7 {[%emt 0:29:37]} Kb2 {[%emt 0:30:06]} 42. f8=Q {[%emt 0:00:09]} a3 {[%emt 0:00:09]} 43. Qxa3+ {[%emt 0:00:13]} Kxa3 {[%emt 0:00:05]} 44. Kxh6 {[%emt 0:00:07]} Kb3 {[%emt 0:00:11]} 45. Kg6 {[%emt 0:00:09]} Kxc3 {[%emt 0:00:07]} 46. h5 {[%emt 0:00:06]} Kd4 {[%emt 0:00:10]} 47. h6 {[%emt 0:00:04] normal} 1-0

[Event "-chT Youth Countries 2019"]
[Site "Wuerzburg"]
[Date "2019.10.06"]
[Round "7.8"]
[White "Braeutigam, Katerina"]
[Black "Roncea, Andrea-Alexandra"]
[Result "1-0"]
[ECO "C91"]
[WhiteElo "1630"]
[BlackElo "1590"]
[Annotator "NA RC"]
[PlyCount "83"]
[EventDate "2019.10.02"]
[EventType "team-tourn"]
[EventRounds "7"]
[EventCountry "GER"]
[SourceTitle "playchess.com"]
[Source "ChessBase"]
[SourceQuality "1"]
[WhiteTeam "Schleswig-Holstein"]
[BlackTeam "Niedersachsen"]
[TimeControl "40/5400+30:1800+30"]

1. e4 {[%emt 0:00:00]} e5 {[%emt 0:00:00]} 2. Nf3 {[%emt 0:00:00]} Nc6 {[%emt 0:00:00]} 3. Bb5 {[%emt 0:00:00]} a6 {[%emt 0:00:00]} 4. Ba4 {[%emt 0:00:00]} Nf6 {[%emt 0:00:06]} 5. O-O {[%emt 0:01:10]} Be7 {[%emt 0:00:43]} 6. Re1 {[%emt 0:01:47]} b5 {[%emt 0:00:41]} 7. Bb3 {[%emt 0:00:30]} O-O {[%emt 0:01:08]} 8. d4 {[%emt 0:03:02]} d6 {[%emt 0:01:46]} 9. c3 {[%emt 0:00:37]} Bg4 {[%emt 0:01:54]} 10. Nbd2 {[%emt 0:01:18]} exd4 {[%emt 0:01:35]} 11. Bd5 {[%emt 0:01:47]} Nxd5 {[%emt 0:03:14]} 12. exd5 {[%emt 0:00:20]} dxc3 {[%emt 0:01:00]} 13. bxc3 {[%emt 0:03:49]} Ne5 {[%emt 0:04:16]} 14. h3 {[%emt 0:03:42]} Nxf3+ {[%emt 0:04:19]} 15. Nxf3 {[%emt 0:00:15]} Bxf3 {[%emt 0:00:39]} 16. Qxf3 {[%emt 0:00:18]} Bf6 {[%emt 0:01:20]} 17. Bf4 {[%emt 0:01:29]} Qd7 {[%emt 0:03:36]} 18. Rac1 {[%emt 0:01:02]} Rfe8 {[%emt 0:01:54]} 19. Rxe8+ {[%emt 0:06:03]} Rxe8 {[%emt 0:03:35]} 20. c4 {[%emt 0:04:07]} Ra8 21. cxb5 {[%emt 0:02:16]} axb5 {[%emt 0:13:25]} 22. Qe2 Bd4 23. Rc6 {[%emt 0:07:05]} Rb8 {[%emt 0:19:24]} 24. Qc2 {[%emt 0:24:58]} Bc5 {[%emt 0:04:38]} 25. Qe4 {[%emt 0:07:06]} h6 {[%emt 0:05:11]} 26. Be3 {[%emt 0:11:15]} Bxe3 {[%emt 0:05:15]} 27. Qxe3 {[%emt 0:01:45]} Rb7 {[%emt 0:06:42]} 28. Qa3 {[%emt 0:06:45]} Qd8 {[%emt 0:03:36]} 29. Ra6 {[%emt 0:03:15]} Kh7 {[%emt 0:02:31]} 30. Ra8 Qd7 {[%emt 0:04:06]} 31. Qd3+ {[%emt 0:01:05]} g6 {[%emt 0:00:29]} 32. Qd4 {[%emt 0:00:50]} f6 {[%emt 0:01:44]} 33. Qxf6 Qg7 {[%emt 0:00:58]} 34. Qf3 {[%emt 0:02:00]} Qa1+ {[%emt 0:03:39]} 35. Kh2 {[%emt 0:00:13]} Qe5+ 36. g3 {[%emt 0:00:48]} Qf5 {[%emt 0:00:43]} 37. Qe3 {[%emt 0:01:54]} Qe5 {[%emt 0:00:39]} 38. Qd2 {[%emt 0:02:53]} Kg7 {[%emt 0:02:09]} 39. Rc8 Qe7 {[%emt 0:01:44]} 40. Qc3+ {[%emt 0:02:56]} Kf7 {[%emt 0:00:30]} 41. Qh8 {[%emt 0:04:22] normal} h5 {[%emt 0:07:41]} 42. Rg8 {[%emt 0:02:19] normal} 1-0

[Event "-chT Youth Countries 2019"]
[Site "Wuerzburg"]
[Date "2019.10.06"]
[Round "7.8"]
[White "Bakó, Isabella"]
[Black "von Beckh, Frieda"]
[Result "0-1"]
[ECO "B54"]
[WhiteElo "1266"]
[BlackElo "1541"]
[Annotator "NA"]
[PlyCount "89"]
[EventDate "2019.10.02"]
[EventType "team-tourn"]
[EventRounds "7"]
[EventCountry "GER"]
[SourceTitle "playchess.com"]
[Source "ChessBase"]
[SourceQuality "1"]
[WhiteTeam "Team Süd"]
[BlackTeam "Hessen"]
[TimeControl "40/5400+30:1800+30"]

1. e4 {[%emt 0:00:00]} c5 {[%emt 0:00:00]} 2. Nf3 {[%emt 0:00:00]} d6 {[%emt 0:00:00]} 3. d4 {[%emt 0:00:11]} cxd4 {[%emt 0:00:00]} 4. Nxd4 {[%emt 0:00:10]} Nf6 {[%emt 0:00:02]} 5. f3 {[%emt 0:00:30]} Nc6 {[%emt 0:00:52]} 6. c4 {[%emt 0:00:48]} g6 {[%emt 0:00:33]} 7. Nc3 {[%emt 0:01:28]} Bg7 {[%emt 0:00:12]} 8. Be3 {[%emt 0:00:45]} Qb6 {[%emt 0:07:21]} 9. Qd2 {[%emt 0:03:06]} Ng4 {[%emt 0:11:26]} 10. Nf5 {[%emt 0:03:57]} Nxe3 {[%emt 0:01:17]} 11. Nxe3 {[%emt 0:01:33]} O-O {[%emt 0:04:11]} 12. Rc1 {[%emt 0:11:58]} Bd7 {[%emt 0:05:43]} 13. Ned5 {[%emt 0:04:40]} Qd8 {[%emt 0:04:27]} 14. b3 {[%emt 0:05:09]} e6 {[%emt 0:07:59]} 15. Ne3 {[%emt 0:01:44]} Bh6 {[%emt 0:04:44]} 16. Nb5 {[%emt 0:04:06]} Qb6 {[%emt 0:04:23]} 17. Rc3 {[%emt 0:02:29]} Rfd8 {[%emt 0:03:20]} 18. Qf2 {[%emt 0:04:10]} a6 {[%emt 0:02:19]} 19. Ng4 {[%emt 0:02:46]} Qxf2+ {[%emt 0:04:19]} 20. Kxf2 {[%emt 0:00:19]} Bg7 {[%emt 0:00:55]} 21. Na3 {[%emt 0:02:54]} Bxc3 {[%emt 0:00:31]} 22. Nh6+ {[%emt 0:06:34]} Kg7 {[%emt 0:01:11]} 23. Ng4 {[%emt 0:00:40]} Nb4 {[%emt 0:02:10]} 24. Be2 {[%emt 0:01:30]} Nxa2 {[%emt 0:02:06]} 25. Rd1 {[%emt 0:03:30]} Bc6 {[%emt 0:02:06]} 26. Nb1 {[%emt 0:02:36]} Ba1 {[%emt 0:01:48]} 27. Nd2 {[%emt 0:03:07]} Bd4+ {[%emt 0:00:40]} 28. Kg3 {[%emt 0:00:43]} Nc3 {[%emt 0:01:21]} 29. Re1 {[%emt 0:00:48]} Nxe2+ {[%emt 0:00:50]} 30. Rxe2 {[%emt 0:00:14]} Kf8 {[%emt 0:00:24]} 31. f4 {[%emt 0:04:51]} h5 {[%emt 0:02:04]} 32. Nf2 {[%emt 0:00:58]} b5 {[%emt 0:01:20]} 33. Nh3 {[%emt 0:02:25]} bxc4 {[%emt 0:00:54]} 34. bxc4 {[%emt 0:00:16]} Rab8 {[%emt 0:00:19]} 35. Nf3 {[%emt 0:02:05]} Bg7 {[%emt 0:00:36]} 36. Nhg5 {[%emt 0:00:59]} Rb4 {[%emt 0:02:18]} 37. Nd2 {[%emt 0:02:42]} Rb2 {[%emt 0:01:25]} 38. Ngf3 {[%emt 0:00:42]} Bc3 {[%emt 0:00:42]} 39. Kf2 {[%emt 0:01:27]} e5 {[%emt 0:01:10]} 40. g3 {[%emt 0:00:54]} exf4 {[%emt 0:01:05]} 41. gxf4 {[%emt 0:30:42]} Re8 {[%emt 0:31:16]} 42. h3 {[%emt 0:02:47]} Bxd2 {[%emt 0:00:27]} 43. Nxd2 {[%emt 0:01:23]} Bxe4 {[%emt 0:00:15]} 44. Nxe4 {[%emt 0:01:32]} Rxe2+ {[%emt 0:00:08] normal} 45. Kxe2 {normal} 0-1

[Event "-chT Youth Countries 2019"]
[Site "Wuerzburg"]
[Date "2019.10.06"]
[Round "7.8"]
[White "Bako, Evelin"]
[Black "Chassard, Cecilia"]
[Result "1-0"]
[ECO "C70"]
[WhiteElo "1209"]
[BlackElo "890"]
[Annotator "NA"]
[PlyCount "98"]
[EventDate "2019.10.02"]
[EventType "team-tourn"]
[EventRounds "7"]
[EventCountry "GER"]
[SourceTitle "playchess.com"]
[Source "ChessBase"]
[SourceQuality "1"]
[WhiteTeam "Württemberg"]
[BlackTeam "Saarland"]
[TimeControl "40/5400+30:1800+30"]

1. e4 {[%emt 0:00:00]} e5 {[%emt 0:00:00]} 2. Nf3 {[%emt 0:00:00]} Nc6 {[%emt 0:00:00]} 3. Bb5 {[%emt 0:00:39]} a6 {[%emt 0:00:00]} 4. Ba4 {[%emt 0:00:38]} b5 {[%emt 0:00:00]} 5. Bb3 {[%emt 0:00:53]} Bc5 {[%emt 0:00:30]} 6. c3 {[%emt 0:03:18]} Nf6 {[%emt 0:00:26]} 7. d3 {[%emt 0:01:56]} d6 {[%emt 0:00:35]} 8. O-O {[%emt 0:01:43]} O-O {[%emt 0:00:38]} 9. Re1 {[%emt 0:02:52]} Bg4 {[%emt 0:00:41]} 10. Nbd2 {[%emt 0:01:53]} Ne7 {[%emt 0:01:11]} 11. h3 {[%emt 0:01:22]} Bh5 {[%emt 0:00:16]} 12. Nf1 {[%emt 0:01:50]} Ng6 {[%emt 0:01:13]} 13. Ng3 {[%emt 0:01:23]} Nh4 {[%emt 0:01:16]} 14. Nxh5 {[%emt 0:02:24]} Nxh5 {[%emt 0:00:56]} 15. d4 {[%emt 0:06:39]} Nxf3+ {[%emt 0:00:15]} 16. Qxf3 {[%emt 0:00:39]} Nf6 {[%emt 0:02:33]} 17. dxc5 {[%emt 0:00:40]} dxc5 {[%emt 0:03:52]} 18. Be3 {[%emt 0:04:57]} c4 {[%emt 0:01:25]} 19. Bc2 {[%emt 0:03:01]} Qe7 {[%emt 0:02:35]} 20. Bg5 {[%emt 0:05:09]} h6 {[%emt 0:00:37]} 21. Bxf6 {[%emt 0:01:01]} Qxf6 {[%emt 0:00:14]} 22. Qxf6 {[%emt 0:00:12]} gxf6 {[%emt 0:00:04]} 23. a4 {[%emt 0:05:57]} bxa4 {[%emt 0:00:14]} 24. Rxa4 {[%emt 0:00:28]} Rfb8 {[%emt 0:01:43]} 25. Rb1 {[%emt 0:01:47]} Rb7 {[%emt 0:00:28]} 26. Rxc4 {[%emt 0:01:00]} Rab8 {[%emt 0:00:57]} 27. b3 {[%emt 0:02:44]} Rd8 {[%emt 0:02:17]} 28. Rd1 {[%emt 0:01:08]} Rxd1+ {[%emt 0:00:11]} 29. Bxd1 {[%emt 0:00:09]} Ra7 {[%emt 0:01:02]} 30. Ra4 {[%emt 0:01:12]} Kg7 {[%emt 0:00:59]} 31. Be2 {[%emt 0:01:01]} Kf8 {[%emt 0:01:05]} 32. Rxa6 {[%emt 0:00:18]} Rxa6 {[%emt 0:00:11]} 33. Bxa6 {[%emt 0:00:10]} Ke7 {[%emt 0:00:14]} 34. Kf1 {[%emt 0:00:26]} Kd6 {[%emt 0:00:08]} 35. Ke2 {[%emt 0:00:36]} Kc5 {[%emt 0:00:27]} 36. Kd3 {[%emt 0:00:54]} h5 {[%emt 0:00:56]} 37. Bc4 {[%emt 0:00:46]} h4 {[%emt 0:00:13]} 38. Bxf7 {[%emt 0:00:21]} c6 {[%emt 0:00:49]} 39. g3 {[%emt 0:01:14]} hxg3 {[%emt 0:00:06]} 40. fxg3 {[%emt 0:00:09]} Kd6 {[%emt 0:00:23]} 41. Be8 {[%emt 0:31:58]} c5 {[%emt 0:30:16]} 42. b4 {[%emt 0:00:19]} f5 {[%emt 0:00:31]} 43. exf5 {[%emt 0:00:49]} e4+ {[%emt 0:00:30]} 44. Kxe4 {[%emt 0:00:12]} c4 {[%emt 0:00:27]} 45. f6 {[%emt 0:00:32]} Ke6 {[%emt 0:00:12]} 46. b5 {[%emt 0:01:14]} Kxf6 {[%emt 0:00:13]} 47. b6 {[%emt 0:00:17]} Ke7 {[%emt 0:00:03]} 48. b7 {[%emt 0:00:31]} Kxe8 {[%emt 0:00:06]} 49. b8=Q+ {[%emt 0:00:12]} Kd7 {[%emt 0:00:12] normal} 1-0

[Event "-chT Youth Countries 2019"]
[Site "Wuerzburg"]
[Date "2019.10.06"]
[Round "7.8"]
[White "Heinze, Sofie"]
[Black "Ulrich, Helena Irene"]
[Result "0-1"]
[ECO "E92"]
[WhiteElo "1207"]
[BlackElo "1355"]
[Annotator "NA"]
[PlyCount "66"]
[EventDate "2019.10.02"]
[EventType "team-tourn"]
[EventRounds "7"]
[EventCountry "GER"]
[SourceTitle "playchess.com"]
[Source "ChessBase"]
[SourceQuality "1"]
[WhiteTeam "Brandenburg/Berlin"]
[BlackTeam "Thüringen"]
[TimeControl "40/5400+30:1800+30"]

1. d4 {[%emt 0:00:00]} Nf6 {[%emt 0:00:00]} 2. c4 {[%emt 0:00:23]} g6 {[%emt 0:00:00]} 3. Nc3 {[%emt 0:00:21]} Bg7 {[%emt 0:00:00]} 4. e4 {[%emt 0:00:33]} d6 {[%emt 0:00:15]} 5. Nf3 {[%emt 0:00:24]} O-O {[%emt 0:00:39]} 6. Be2 {[%emt 0:00:15]} e5 {[%emt 0:00:46]} 7. dxe5 {[%emt 0:00:17]} dxe5 {[%emt 0:00:07]} 8. Qxd8 Rxd8 {[%emt 0:00:06]} 9. Bg5 {[%emt 0:00:43]} Re8 {[%emt 0:00:26]} 10. Nd5 {[%emt 0:02:34]} Nxd5 {[%emt 0:02:48]} 11. cxd5 {[%emt 0:00:27]} Nd7 {[%emt 0:03:00]} 12. Bc4 Nc5 {[%emt 0:06:13]} 13. Nd2 {[%emt 0:03:30]} h6 14. Be3 {[%emt 0:00:53]} Nd7 {[%emt 0:07:59]} 15. O-O {[%emt 0:00:36]} Nf6 {[%emt 0:01:53]} 16. Rac1 {[%emt 0:03:34]} Ng4 {[%emt 0:07:26]} 17. Bc5 {[%emt 0:02:00]} Bd7 {[%emt 0:06:49]} 18. Nf3 {[%emt 0:02:37]} Bf8 {[%emt 0:06:50]} 19. Bxf8 {[%emt 0:00:28]} Kxf8 {[%emt 0:01:04]} 20. Rfd1 {[%emt 0:00:38]} Nf6 {[%emt 0:01:13]} 21. Re1 {[%emt 0:03:23]} Rac8 {[%emt 0:03:06]} 22. b3 {[%emt 0:13:17]} Bg4 {[%emt 0:03:03]} 23. Re3 {[%emt 0:00:47]} Bxf3 {[%emt 0:01:26]} 24. Rxf3 {[%emt 0:00:16]} Nxe4 {[%emt 0:01:02]} 25. Rc2 {[%emt 0:12:16]} Nd6 {[%emt 0:04:33]} 26. Bf1 {[%emt 0:03:11]} Nf5 {[%emt 0:02:00]} 27. Rd2 {[%emt 0:01:45]} Nd4 {[%emt 0:01:18]} 28. Re3 {[%emt 0:04:27]} Rcd8 {[%emt 0:02:43]} 29. Bc4 {[%emt 0:00:47]} b5 {[%emt 0:01:12]} 30. Bf1 {[%emt 0:06:37]} Rxd5 {[%emt 0:01:23]} 31. Red3 {[%emt 0:01:30]} a6 {[%emt 0:02:17]} 32. g3 {[%emt 0:00:23]} Red8 {[%emt 0:01:52]} 33. Bg2 {[%emt 0:01:08]} Nf3+ {[%emt 0:01:25] normal Bf1} 0-1

[Event "-chT Youth Countries 2019"]
[Site "Wuerzburg"]
[Date "2019.10.06"]
[Round "7.8"]
[White "Reich, Elisabeth"]
[Black "Haug, Mara"]
[Result "0-1"]
[ECO "B22"]
[WhiteElo "1199"]
[BlackElo "1508"]
[Annotator "NA"]
[PlyCount "134"]
[EventDate "2019.10.02"]
[EventType "team-tourn"]
[EventRounds "7"]
[EventCountry "GER"]
[SourceTitle "playchess.com"]
[Source "ChessBase"]
[SourceQuality "1"]
[WhiteTeam "Bayern 2"]
[BlackTeam "Baden 2"]
[TimeControl "40/5400+30:1800+30"]

1. e4 {[%emt 0:00:00]} c5 {[%emt 0:00:00]} 2. c3 {[%emt 0:00:00]} Nc6 {[%emt 0:08:22]} 3. d4 {[%emt 0:00:24]} cxd4 {[%emt 0:04:55]} 4. cxd4 {[%emt 0:00:10]} g6 {[%emt 0:06:35]} 5. Nf3 {[%emt 0:00:31]} Bg7 {[%emt 0:01:46]} 6. Bc4 {[%emt 0:01:02]} d6 {[%emt 0:01:21]} 7. O-O {[%emt 0:01:22]} Nf6 {[%emt 0:05:10]} 8. Nc3 {[%emt 0:00:41]} O-O {[%emt 0:03:12]} 9. h3 {[%emt 0:01:05]} e6 {[%emt 0:08:49]} 10. Be3 {[%emt 0:00:44]} d5 {[%emt 0:03:47]} 11. exd5 {[%emt 0:01:13]} exd5 {[%emt 0:00:41]} 12. Bb3 {[%emt 0:00:52]} Be6 {[%emt 0:03:05]} 13. Qd2 {[%emt 0:00:56]} Re8 {[%emt 0:04:52]} 14. Bh6 {[%emt 0:00:50]} Bh8 {[%emt 0:01:56]} 15. Rfe1 {[%emt 0:00:25]} Qd7 {[%emt 0:10:54]} 16. Ne5 {[%emt 0:01:34]} Qc7 {[%emt 0:04:16]} 17. Qf4 {[%emt 0:01:03]} Nh5 {[%emt 0:02:54]} 18. Qe3 {[%emt 0:03:22]} Qd8 {[%emt 0:08:49]} 19. Nxc6 {[%emt 0:00:48]} bxc6 {[%emt 0:00:19]} 20. Qd2 {[%emt 0:00:13]} Bf6 {[%emt 0:02:22]} 21. Ba4 {[%emt 0:01:22]} Rc8 {[%emt 0:00:56]} 22. Rab1 {[%emt 0:00:48]} Be7 {[%emt 0:04:11]} 23. a3 {[%emt 0:00:55]} f6 {[%emt 0:00:55]} 24. Bf4 {[%emt 0:01:12]} Nxf4 {[%emt 0:01:11]} 25. Qxf4 {[%emt 0:00:22]} Bd6 {[%emt 0:01:27]} 26. Qd2 {[%emt 0:02:40]} Qb6 {[%emt 0:03:10]} 27. Re2 {[%emt 0:02:24]} Bd7 {[%emt 0:00:28]} 28. Rxe8+ {[%emt 0:00:19]} Rxe8 {[%emt 0:00:21]} 29. Rd1 {[%emt 0:01:36]} Qb7 {[%emt 0:01:35]} 30. Qc2 {[%emt 0:01:05]} Bf5 {[%emt 0:01:07]} 31. Qb3 {[%emt 0:00:55]} Qe7 {[%emt 0:00:38]} 32. g3 {[%emt 0:01:17]} Rb8 {[%emt 0:01:33]} 33. Qa2 {[%emt 0:00:17]} Qb7 {[%emt 0:00:48]} 34. Ra1 {[%emt 0:00:44]} Bxh3 {[%emt 0:00:54]} 35. Kh2 {[%emt 0:00:14]} Bd7 {[%emt 0:00:08]} 36. Rb1 {[%emt 0:01:17]} Bf5 {[%emt 0:00:26]} 37. Ra1 {[%emt 0:00:21]} Bd3 {[%emt 0:01:33]} 38. Rd1 {[%emt 0:00:55]} Bc4 {[%emt 0:00:17]} 39. Qb1 {[%emt 0:00:52]} Qxb2 {[%emt 0:00:31]} 40. Qxb2 {[%emt 0:00:10]} Rxb2 {[%emt 0:00:09]} 41. Bxc6 {[%emt 0:30:12]} Rxf2+ {[%emt 0:30:26]} 42. Kg1 {[%emt 0:00:15]} Rf5 {[%emt 0:00:23]} 43. Re1 {[%emt 0:00:23]} Bxg3 {[%emt 0:00:00]} 44. Re8+ {[%emt 0:00:00]} Kf7 {[%emt 0:00:00]} 45. Rh8 {[%emt 0:00:00]} Kg7 {[%emt 0:00:00]} 46. Ra8 {[%emt 0:00:00]} Bf2+ {[%emt 0:00:00]} 47. Kg2 {[%emt 0:00:00]} Bxd4 {[%emt 0:00:00]} 48. Nb5 {[%emt 0:00:00]} Bc5 {[%emt 0:00:00]} 49. a4 {[%emt 0:00:00]} Bxb5 {[%emt 0:00:00]} 50. axb5 {[%emt 0:00:00]} d4 {[%emt 0:00:00]} 51. Rd8 {[%emt 0:00:00]} Re5 {[%emt 0:00:00]} 52. Rd7+ {[%emt 0:00:00]} Kh6 {[%emt 0:00:00]} 53. Bf3 {[%emt 0:00:00]} Re6 {[%emt 0:00:00]} 54. Rd5 {[%emt 0:00:00]} Bb6 {[%emt 0:00:00]} 55. Bg4 {[%emt 0:00:00]} Re8 {[%emt 0:00:00]} 56. Rd6 {[%emt 0:00:00]} f5 {[%emt 0:00:00]} 57. Bxf5 {[%emt 0:00:00]} Rd8 {[%emt 0:00:00]} 58. Rxd8 {[%emt 0:00:00]} Bxd8 {[%emt 0:00:00]} 59. Kf2 {[%emt 0:00:00]} gxf5 {[%emt 0:00:00]} 60. Ke2 {[%emt 0:00:00]} Bb6 {[%emt 0:00:00]} 61. Kd3 {[%emt 0:00:00]} Kg5 {[%emt 0:00:00]} 62. Ke2 {[%emt 0:00:00]} Kg4 {[%emt 0:00:00]} 63. Kf2 {[%emt 0:00:00]} h5 {[%emt 0:00:00]} 64. Ke1 {[%emt 0:00:00]} d3 {[%emt 0:00:00]} 65. Kd2 {[%emt 0:00:00]} Kg3 {[%emt 0:00:00]} 66. Kxd3 {[%emt 0:00:00]} h4 {[%emt 0:00:00] Kd4 h3+ Kd3 Kg2} 67. Kc4 {[%emt 0:00:00] h2 Kd5 h1=Q Ke5} Kf2 {[%emt 0:00:00] normal Kxf5 Qd1 Kf4 Qd3 Ke5 Qd4+ Kf5 Kf3 Ke6 Qc5 Kf6 Qd5 Ke7 Kg4 Kf6 Qe4 Kg7 Qf5 Kh6 Qg5+ Kh7 Kf5 Kh8 Kf6 Kh7 Qg7#} 0-1

[Event "-chT Youth Countries 2019"]
[Site "Wuerzburg"]
[Date "2019.10.06"]
[Round "7.8"]
[White "Richter, Johanna"]
[Black "Pohle, Saskia"]
[Result "0-1"]
[ECO "A49"]
[WhiteElo "942"]
[BlackElo "1716"]
[Annotator "NA"]
[PlyCount "120"]
[EventDate "2019.10.02"]
[EventType "team-tourn"]
[EventRounds "7"]
[EventCountry "GER"]
[SourceTitle "playchess.com"]
[Source "ChessBase"]
[SourceQuality "1"]
[WhiteTeam "Rheinland-Pfalz"]
[BlackTeam "Sachsen"]
[TimeControl "40/5400+30:1800+30"]

1. d4 {[%emt 0:00:00]} Nf6 {[%emt 0:00:00]} 2. Nf3 {[%emt 0:00:00]} g6 {[%emt 0:00:00]} 3. g3 {[%emt 0:00:00]} Bg7 {[%emt 0:00:00]} 4. Bg2 {[%emt 0:00:04]} d5 {[%emt 0:00:06]} 5. O-O {[%emt 0:00:13]} O-O {[%emt 0:00:06]} 6. c4 {[%emt 0:00:20]} e6 {[%emt 0:00:37]} 7. cxd5 {[%emt 0:00:11]} Nxd5 {[%emt 0:00:34]} 8. Nc3 {[%emt 0:00:36]} Nxc3 {[%emt 0:03:10]} 9. bxc3 {[%emt 0:00:33]} c5 10. e4 {[%emt 0:02:55]} Nc6 {[%emt 0:02:50]} 11. Be3 {[%emt 0:01:56]} Qa5 {[%emt 0:05:01]} 12. Qb3 {[%emt 0:04:00]} Rd8 {[%emt 0:02:24]} 13. Rfd1 {[%emt 0:02:48]} Bd7 {[%emt 0:12:40]} 14. Rd2 {[%emt 0:05:49]} Rac8 {[%emt 0:01:13]} 15. a3 {[%emt 0:15:19]} cxd4 {[%emt 0:07:01]} 16. cxd4 {[%emt 0:00:48]} Be8 {[%emt 0:02:05]} 17. Raa2 {[%emt 0:08:14]} Qc7 {[%emt 0:02:19]} 18. Rac2 {[%emt 0:01:47]} Qe7 {[%emt 0:00:53]} 19. Bg5 {[%emt 0:03:10]} f6 {[%emt 0:00:10]} 20. Be3 {[%emt 0:00:45]} Bf7 {[%emt 0:01:02]} 21. a4 {[%emt 0:05:19]} b6 {[%emt 0:06:52]} 22. Qb5 {[%emt 0:03:22]} Be8 {[%emt 0:02:59]} 23. Qb3 {[%emt 0:01:01]} Na5 {[%emt 0:02:50]} 24. Qa2 {[%emt 0:01:05]} Bf7 {[%emt 0:00:44]} 25. Rxc8 {[%emt 0:01:44]} Rxc8 {[%emt 0:00:10]} 26. Rc2 {[%emt 0:02:09]} Rb8 {[%emt 0:03:16]} 27. Bf1 {[%emt 0:03:26]} Qb7 {[%emt 0:02:06]} 28. Bd3 {[%emt 0:02:21]} f5 {[%emt 0:01:55]} 29. Nd2 {[%emt 0:00:59]} fxe4 {[%emt 0:01:35]} 30. Bxe4 {[%emt 0:00:22]} Qd7 {[%emt 0:00:32]} 31. Nf3 {[%emt 0:01:53]} e5 {[%emt 0:02:27]} 32. Nxe5 {[%emt 0:00:47]} Bxe5 {[%emt 0:00:09]} 33. Qb2 {[%emt 0:02:02]} Qxa4 {[%emt 0:04:39]} 34. dxe5 {[%emt 0:00:55]} Qxe4 {[%emt 0:00:10]} 35. Qd4 {[%emt 0:00:46]} Qxc2 {[%emt 0:00:55]} 36. Bh6 {[%emt 0:01:27]} Be6 {[%emt 0:01:56]} 37. Qd6 {[%emt 0:01:19]} Re8 {[%emt 0:01:06]} 38. Qd4 {[%emt 0:09:01]} Qc5 {[%emt 0:01:37]} 39. Qf4 {[%emt 0:00:39]} Qe7 {[%emt 0:02:50]} 40. Bg5 {[%emt 0:01:43]} Qf7 {[%emt 0:00:08]} 41. Bf6 {[%emt 0:31:02]} Rc8 {[%emt 0:32:43]} 42. Qh6 {[%emt 0:00:40]} b5 {[%emt 0:02:06]} 43. h4 {[%emt 0:05:10]} Qf8 {[%emt 0:01:17]} 44. Qe3 {[%emt 0:01:20]} Qc5 {[%emt 0:01:53]} 45. Qxc5 {[%emt 0:00:53]} Rxc5 {[%emt 0:00:07]} 46. Kh2 {[%emt 0:00:39]} b4 {[%emt 0:00:29]} 47. Be7 {[%emt 0:00:13]} Rb5 {[%emt 0:00:12]} 48. Bxb4 {[%emt 0:01:25]} Rxb4 {[%emt 0:00:05]} 49. Kg1 {[%emt 0:00:50]} Bd5 {[%emt 0:00:19]} 50. Kh2 {[%emt 0:00:28]} Nc6 {[%emt 0:00:19]} 51. e6 {[%emt 0:01:57]} Rb1 {[%emt 0:00:49]} 52. Kh3 {[%emt 0:00:19]} Bxe6+ {[%emt 0:00:08]} 53. Kg2 {[%emt 0:00:14]} a5 {[%emt 0:00:09]} 54. Kh2 {[%emt 0:00:41]} a4 {[%emt 0:00:22]} 55. Kg2 {[%emt 0:00:05]} a3 {[%emt 0:00:08]} 56. Kh2 {[%emt 0:00:21]} a2 {[%emt 0:00:11]} 57. Kg2 {[%emt 0:00:08]} a1=Q {[%emt 0:00:07]} 58. Kh2 {[%emt 0:00:28]} Rh1+ {[%emt 0:00:29]} 59. Kg2 {[%emt 0:00:17]} Bd5+ {[%emt 0:00:05]} 60. f3 {[%emt 0:00:38]} Qf1# {normal} 0-1